[Event "EICC 2025"]
[Site "Eforie-Nord"]
[Date "2025.03.17"]
[Round "3.1"]
[White "Kuzubov, Yuriy"]
[Black "Godena, Michele"]
[Result "1-0"]
[Annotator "TA"]
[ECO "D02"]
[WhiteElo "2603"]
[BlackElo "2439"]
[PlyCount "91"]
[EventDate "2025.03.14"]
[EventType "swiss"]
[EventCountry "ROU"]
[SourceTitle "playchess.com"]
[Source "ChessBase"]
[SourceQuality "1"]
[TimeControl "40/5400+30:1800+30"]

{[%evp 9,91,21,25,28,28,22,30,14,33,25,21,19,18,19,28,12,27,25,22,14,27,0,3,0,14,0,25,34,29,26,33,35,32,37,35,31,27,33,32,38,31,36,32,12,68,59,85,87,81,91,137,144,142,153,185,119,165,156,160,160,143,166,143,134,159,158,230,239,347,323,388,380,390,314,317,237,457,321,527,572,661,656,715,715]} 1. Nf3 {[%emt 0:00:04][%cal Bg1f3,Bf3h4,Bh4g2,Bg2f4][%mdl 32]} d5 {[%emt 0:00:13]} 2. g3 {[%emt 0:00:05]} Nd7 {[%emt 0:01:13]} 3. d4 {[%emt 0:00:24]} Nb6 {[%emt 0:00:09]} 4. b3 {[%emt 0:01:15]} Bf5 {[%emt 0:07:44]} 5. Nh4 {[%emt 0:00:17]} Bg4 {[%emt 0:13:52]} 6. h3 {[%emt 0:00:28] D02: 1 d4 d5 2 Nf3 sidelines, including 2...Nf6 3 g3 and 2...Nf6 3 Bf4.} Bh5 {[%emt 0:00:05]} 7. Ng2 {[%emt 0:00:03]} Bg6 {[%emt 0:31:22]} 8. Nf4 {[%emt 0:00:37] White has an edge.} Bf5 $146 {[%emt 0:02:15]} (8... Be4 $5 9. f3 Bf5 $14) (8... e6 9. Bg2 Nf6 10. Nxg6 hxg6 11. Qd3 c5 12. dxc5 Bxc5 13. Bb2 Qe7 14. O-O O-O {0-1 Blohberger,F (2493)-Bacrot,E (2646) Bundesliga 2223 2022 (12.1)}) 9. Bg2 {[%emt 0:17:21]} h6 {[%emt 0:05:52]} 10. O-O {[%emt 0:18:22][%cal Of4d5]} e6 {[%emt 0:00:41]} 11. Nd2 {[%emt 0:03:16]} Nf6 {[%emt 0:00:16]} 12. Bb2 {[%emt 0:00:30]} Bd6 {[%emt 0:02:13]} 13. e3 {[%emt 0:02:25]} c6 {[%emt 0:00:55]} 14. Nd3 {[%emt 0:04:50]} Qe7 {[%emt 0:12:52]} 15. a3 {[%emt 0:03:43]} O-O {[%emt 0:01:48] The position is symmetric and equal} 16. Qe2 {[%emt 0:04:27]} Nbd7 {[%emt 0:03:29]} 17. c4 {[%emt 0:05:51]} e5 {[%emt 0:01:05]} 18. cxd5 {[%emt 0:08:09]} cxd5 {[%emt 0:01:18] Black sacrificed a pawn} 19. Nxe5 {[%emt 0:06:38]} Nxe5 {[%emt 0:00:05]} 20. dxe5 {[%emt 0:00:09]} Bxe5 {[%emt 0:00:02]} 21. Bxe5 {[%emt 0:03:49]} Qxe5 {[%emt 0:00:02]} 22. Nf3 {[%emt 0:00:57]} Qc3 {[%emt 0:01:25]} 23. Rfc1 {[%emt 0:02:21]} Qxb3 {[%emt 0:08:38]} 24. Nd4 {[%emt 0:00:11][%csl LRb3,LRf5]} Qd3 {[%emt 0:00:04]} 25. Qb2 {[%emt 0:00:53][%mdl 1024] White has compensation.} Bc8 {[%emt 0:02:29]} 26. Rc7 {[%emt 0:06:18]} b6 {[%emt 0:00:04]} (26... Qa6 $11) 27. Rac1 $36 {[%emt 0:02:04][%mdl 2048] White is pushing. White is much more active. The black rooks are passive.} Bd7 {[%emt 0:00:38] [#]} 28. e4 $1 {[%emt 0:01:18][%cal Be3e4,Be4d5,Bd5d6][%mdl 32]} Rfe8 {[%emt 0:01:32]} (28... dxe4 $2 29. Bf1 $18) 29. exd5 {[%emt 0:01:54][%csl Od5] White has a strong passed pawn} Rac8 {[%emt 0:02:02]} (29... a6 $142) 30. d6 $16 {[%emt 0:01:16]} (30. Rxa7 $2 Rxc1+ 31. Qxc1 Qxd4 $19) 30... Rcd8 {[%emt 0:00:03]} 31. Rxa7 {[%emt 0:01:06]} Be6 {[%emt 0:00:58]} 32. Nb5 {[%emt 0:03:39]} (32. Qxb6 $18 Bd5 33. Bxd5 Nxd5 34. Qc5) 32... Bd5 {[%emt 0:00:34]} (32... Rf8 $16) 33. Bxd5 $18 {[%emt 0:01:20]} Qxd5 {[%emt 0:00:05]} 34. Nc7 {[%emt 0:00:25][%csl LRb6,LRd5,LRe8] The board is on fire.} Qe5 {[%emt 0:00:02]} 35. Qxe5 {[%emt 0:00:33]} (35. Qxb6 Rxd6 36. Qb7 Red8 $15) 35... Rxe5 {[%emt 0:00:01]} 36. Rd1 {[%emt 0:00:24]} Rd7 {[%emt 0:01:10]} 37. a4 {[%emt 0:00:40]} g6 {[%emt 0:01:07]} (37... Re4 $16 38. f3 Rc4) 38. Rb7 {[%emt 0:00:38]} Ra5 {[%emt 0:00:29]} (38... Re4 {was necessary.} 39. Kg2 (39. Rxb6 Rxa4 40. Na6 Rc4 $18) (39. Nd5 Rxd6 40. Ne7+ Rxe7 $11) 39... Rd8) 39. Rd4 {[%emt 0:00:33]} ({Weaker is} 39. Rxb6 Rxa4 40. Na6 Rc4 $18) 39... Rc5 {[%emt 0:00:32]} 40. Rxb6 {[%emt 0:00:14]} Kg7 {[%emt 0:00:05]} 41. Rb2 {[%emt 0:30:31]} Rc6 {[%emt 0:30:35]} 42. Nb5 {[%emt 0:00:08]} Rb7 $2 {[%emt 0:00:26] [#]} (42... Kf8 43. Rb3 Ne8) 43. Kg2 {[%emt 0:00:35] Ra2 would now be deadly.} Nd7 $2 {[%emt 0:00:37]} (43... Rd7 44. Rbd2 Ne8) 44. Re2 {[%emt 0:00:12] White is clearly winning.} Nf6 {[%emt 0:00:00]} 45. Nc7 {[%emt 0:00:00]} Kf8 {[%emt 0:00:00]} 46. a5 {[%emt 0:00:00] Weighted Error Value: White=0.15 (very precise) /Black=0.34  Mistake:       	White=1     	Black=7      Inaccurate:     	---       	Black=1      OK:         	White=13    	Black=10     Best:        	White=4     	---} (46. d7 Nxd7 47. Rxd7 Rcxc7 48. Rxc7 Rxc7 $16) 1-0

[Event "EICC 2025"]
[Site "Eforie-Nord"]
[Date "2025.03.17"]
[Round "3.2"]
[White "Vogel, Roven"]
[Black "Van Foreest, Jorden"]
[Result "0-1"]
[Annotator "TA"]
[ECO "D12"]
[WhiteElo "2552"]
[BlackElo "2676"]
[PlyCount "94"]
[EventDate "2025.03.14"]
[EventType "swiss"]
[EventCountry "ROU"]
[SourceTitle "playchess.com"]
[Source "ChessBase"]
[SourceQuality "1"]
[TimeControl "40/5400+30:1800+30"]

{[%evp 11,94,17,26,22,32,0,29,0,41,38,44,26,26,0,0,-2,-3,-9,-10,-7,-5,0,0,2,0,-16,0,-7,0,0,6,0,0,-7,-14,-29,-17,-19,-26,-52,-52,-42,-40,-72,-79,-116,-118,-147,-155,-156,-151,-199,-190,-196,-199,-198,-192,-193,-197,-193,-196,-197,-185,-200,-191,-181,-183,-230,-230,-235,-235,-486,-466,-29977,-530,-29979,-29980,-29980,-29981,-29981,-29982,-29982,-29983,-29984,-29985]} 1. d4 {[%emt 0:00:04]} d5 {[%emt 0:00:13]} 2. c4 {[%emt 0:00:10]} c6 {[%emt 0:00:11]} 3. Nf3 {[%emt 0:01:48]} Nf6 {[%emt 0:00:14]} 4. e3 {[%emt 0:01:39]} Bf5 {[%emt 0:00:08]} 5. Nc3 {[%emt 0:00:06]} e6 {[%emt 0:00:06]} 6. Nh4 {[%emt 0:00:07]} Bg6 {[%emt 0:00:06]} 7. Qb3 {[%emt 0:00:40] D12: Slav Defence: 3 Nf3 Nf6 4 e3 Bf5.} Qc7 {[%emt 0:00:31] The main line 7...Qc7 scores better than 7...Qb6.} 8. Bd2 {[%emt 0:02:19]} Be7 {[%emt 0:00:05]} 9. Rc1 {[%emt 0:02:49] White has an edge.} Qb6 {[%emt 0:01:41]} 10. Nxg6 {[%emt 0:03:09]} hxg6 {[%emt 0:00:12]} 11. Be2 {[%emt 0:03:48]} g5 $5 $146 {[%emt 0:05:11][%mdl 8] New and interesting.} (11... Nbd7 12. Na4 Qxb3 13. axb3 Ne4 14. Bc3 Nxc3 15. bxc3 dxc4 16. bxc4 c5 17. Bf3 Rb8 {½-½ Lorparizangeneh,S (2502)-Sjugirov,S (2696) Titled Tuesday intern op 03rd May Early blitz 2022 (9)}) 12. Qxb6 {[%emt 0:05:44]} axb6 {[%emt 0:00:42]} 13. f3 {[%emt 0:05:39]} dxc4 {[%emt 0:03:28]} 14. Bxc4 {[%emt 0:01:37]} b5 {[%emt 0:00:18]} 15. Bb3 {[%emt 0:00:45] Not much happening anymore} g4 {[%emt 0:02:37]} 16. Ke2 {[%emt 0:05:26]} b4 {[%emt 0:13:30]} 17. Nd1 {[%emt 0:01:51][%cal Bc3d1,Bd1f2,Bf2d3][%mdl 32]} gxf3+ {[%emt 0:01:55]} 18. gxf3 {[%emt 0:00:34]} Ra5 {[%emt 0:01:45]} 19. Nf2 {[%emt 0:02:28]} Rah5 {[%emt 0:06:40]} 20. h3 {[%emt 0:01:03]} Nbd7 {[%emt 0:02:18]} 21. Rcg1 {[%emt 0:08:00]} g6 {[%emt 0:01:08]} 22. Rg2 {[%emt 0:01:02]} Nd5 {[%emt 0:10:51]} 23. Nd3 {[%emt 0:03:38]} Rxh3 {[%emt 0:05:39]} 24. Rxh3 {[%emt 0:00:06]} Rxh3 {[%emt 0:00:03]} 25. e4 {[%emt 0:01:53]} Nc7 {[%emt 0:00:05]} 26. Nxb4 {[%emt 0:00:56]} e5 {[%emt 0:11:05]} (26... Nb5 $5 27. Nc2 $8 e5 $15) 27. dxe5 {[%emt 0:27:24]} Nxe5 {[%emt 0:00:31][%cal Oc7b5] Black converts the advantage convincingly.} 28. f4 {[%emt 0:00:08]} Bxb4 {[%emt 0:02:21]} 29. Bxb4 {[%emt 0:02:23]} Nd3 {[%emt 0:00:09]} 30. Bd2 {[%emt 0:00:15]} Nb5 $1 {[%emt 0:00:34] Black is more active.} 31. Be3 {[%emt 0:02:16] Repels Nd4+} (31. Kf1 $17) 31... Nxb2 $19 {[%emt 0:02:07]} 32. f5 {[%emt 0:04:12]} Nc3+ {[%emt 0:01:51]} 33. Kd2 {[%emt 0:00:12]} Nxe4+ {[%emt 0:00:15] A dynamic duo of knights.} 34. Kc2 {[%emt 0:00:19]} Rxe3 {[%emt 0:03:00]} 35. fxg6 {[%emt 0:00:06] [#]} fxg6 {[%emt 0:00:26]} 36. Kxb2 {[%emt 0:00:10][%mdl 4096] Endgame KRB-KRN. Black is two pawns up.} Ng3 {[%emt 0:00:08]} 37. Kc1 {[%emt 0:00:45]} Kf8 {[%emt 0:06:52]} 38. Kd2 {[%emt 0:01:13]} Rf3 {[%emt 0:00:05]} 39. Bd1 {[%emt 0:00:33]} (39. Bc2 {was worth a try.}) 39... Ne4+ {[%emt 0:00:15]} 40. Kc1 {[%emt 0:01:06]} Rf1 {[%emt 0:00:32]} 41. Rxg6 $2 {[%emt 0:30:07]} (41. Kc2) 41... Nc3 {[%emt 0:30:58]} 42. Rd6 {[%emt 0:00:04] [#]} (42. Kc2 $19 Nxd1 43. Rg3) 42... Ke7 {[%emt 0:00:47]} (42... Nxa2+ $2 43. Kb2 Rf2+ 44. Kb3 $17) (42... Rxd1+ $142 43. Rxd1 Nxd1 (43... Nxa2+ 44. Kb2 $11) 44. Kxd1 Ke7 45. Kd2 Kd6 46. Kc2 c5 47. Kc3 Kd5 48. a3 c4 49. a4 b6 50. Kb4 Kd4 51. a5 bxa5+ 52. Ka4 c3 53. Kb3 Kd3 54. Ka4 c2 55. Kb5 c1=Q (55... c1=B 56. Kxa5 $11) 56. Kb6 a4 57. Kb5 a3 58. Kb6 a2 59. Kb5 a1=Q (59... a1=B {gets mated.} 60. Kb6 Qc8 61. Kb5 Kc3 62. Kb6 Kb4 63. Ka7 Bd4#) 60. Kb6 Qab2+ 61. Ka7 Qca1#) 43. Rd3 {[%emt 0:00:12]} Rxd1+ {[%emt 0:04:50] Black mates.} (43... Nxa2+ $2 44. Kb2 $19) 44. Rxd1 {[%emt 0:00:01]} Nxd1 {[%emt 0:00:07]} ({Not} 44... Nxa2+ 45. Kd2 $11) 45. Kxd1 {[%emt 0:00:05]} Kd6 {[%emt 0:00:06]} 46. Kd2 {[%emt 0:00:11]} Kd5 {[%emt 0:00:08]} 47. Kd3 {[%emt 0:00:30]} c5 {[%emt 0:17:16] Weighted Error Value: White=0.50/Black=0.24 (precise)   Mistake:       	White=4     	Black=1      Inaccurate:     	White=7     	Black=2      OK:         	White=8     	Black=14     Best:        	White=2     	Black=2      Strong:       	---       	Black=1} 0-1

[Event "EICC 2025"]
[Site "Eforie-Nord"]
[Date "2025.03.17"]
[Round "3.2"]
[White "Saraci, Nderim"]
[Black "Kozak, Adam"]
[Result "1/2-1/2"]
[Annotator "TA"]
[ECO "C47"]
[WhiteElo "2439"]
[BlackElo "2601"]
[PlyCount "56"]
[EventDate "2025.03.14"]
[EventType "swiss"]
[EventCountry "ROU"]
[SourceTitle "playchess.com"]
[Source "ChessBase"]
[SourceQuality "1"]
[TimeControl "40/5400+30:1800+30"]

{[%evp 11,56,32,30,30,30,32,35,29,29,12,19,12,30,0,8,0,0,3,-6,-37,-45,-68,-25,-68,-72,-82,-70,-101,0,-71,-72,-56,-58,-64,-69,-88,-53,-81,-62,-66,-57,-52,-7,0,-5,0,0]} 1. e4 {[%emt 0:00:04]} e5 {[%emt 0:01:23]} 2. Nf3 {[%emt 0:00:16]} Nc6 {[%emt 0:00:08]} 3. Nc3 {[%emt 0:00:37]} Nf6 {[%emt 0:00:27]} 4. d4 {[%emt 0:00:28]} exd4 {[%emt 0:03:29]} 5. Nxd4 {[%emt 0:00:21]} Bc5 {[%emt 0:00:05]} 6. Be3 {[%emt 0:02:14]} Bb6 {[%emt 0:00:29]} 7. Qd2 $1 {[%emt 0:06:04][%mdl 4] is more profitable than 7.Nxc6 at the moment. C47: Scotch Four Knights and Four Knights with 4 g3.} Ng4 {[%emt 0:00:07]} 8. Nxc6 {[%emt 0:41:11]} bxc6 {[%emt 0:00:11]} 9. Bd4 {[%emt 0:02:23] White is slightly better. has lost popularity (9.Bxb6).} d6 {[%emt 0:00:16]} 10. O-O-O {[%emt 0:03:13]} (10. Bxg7 Bxf2+ 11. Ke2 Rg8 $17) 10... O-O {[%emt 0:01:32]} 11. h3 {[%emt 0:04:43]} Nf6 {[%emt 0:01:06]} 12. g4 $146 {[%emt 0:01:24]} (12. Bc4 Be6 13. Bb3 Ba5 14. Qg5 Bb6 15. e5 Nd5 16. Qxd8 Rfxd8 17. Nxd5 cxd5 18. Bxb6 axb6 19. Bxd5 Bxd5 20. Rxd5 Rxa2 {½-½ Stevic,H (2607)-Saric,I (2650) CRO Cup Mali Losinj 2016 (5.11)}) 12... Nd7 {[%emt 0:23:59]} 13. Bg2 {[%emt 0:06:33][%cal Oe4e5]} Bb7 {[%emt 0:00:37]} 14. f4 {[%emt 0:02:30]} c5 {[%emt 0:04:26]} 15. Be3 {[%emt 0:01:22][%cal Oe4e5,Bd4e3,Be3d2,Bd2c3][%mdl 32]} Ba5 {[%emt 0:00:17]} 16. Rhg1 {[%emt 0:05:56][%cal Oe4e5]} Qc8 {[%emt 0:19:15]} 17. Qe1 {[%emt 0:09:06]} Re8 {[%emt 0:05:30][%cal Ob7e4]} 18. Bd2 {[%emt 0:01:07]} Nb6 {[%emt 0:05:23]} 19. b3 {[%emt 0:01:53] [#]} c4 {[%emt 0:05:17]} (19... Bb4 $1 $17) 20. Qg3 {[%emt 0:03:01]} (20. f5 $11) 20... cxb3 {[%emt 0:00:45]} 21. cxb3 {[%emt 0:00:24]} Bxc3 {[%emt 0:07:16]} 22. Bxc3 Bxe4 23. f5 {[%emt 0:02:36]} Qd7 {[%emt 0:03:30]} 24. Rge1 {[%emt 0:00:50]} Bxg2 {[%emt 0:05:35]} 25. Qxg2 {[%emt 0:00:06]} c6 {[%emt 0:01:50]} 26. Qd2 {[%emt 0:02:21]} Nd5 {[%emt 0:00:33]} 27. f6 $1 {[%emt 0:00:15][%cal Od2g5] [#] Threatening mate with Qg5!.} Nxf6 {[%emt 0:02:26] And now ...Ne4 would win.} ({Much worse is} 27... gxf6 28. Bxf6 Nxf6 29. Qg5+ (29. Qxd6 $2 {perishes.} Qxd6 30. Rxd6 Rxe1+ $19) 29... Kf8 30. Qxf6 $14) 28. Qxd6 {[%emt 0:02:27]} Qxd6 {[%emt 0:04:42] Weighted Error Value: White=0.17 (very precise) /Black=0.13 (very precise)   Mistake:       	White=1     	Black=1      Inaccurate:     	White=4     	Black=3      OK:         	White=5     	Black=6      Best:        	White=1     	Black=2      Strong:       	White=1     	---} 1/2-1/2

[Event "EICC 2025"]
[Site "Eforie-Nord"]
[Date "2025.03.17"]
[Round "3.3"]
[White "Vocaturo, Daniele"]
[Black "Culum, Sanjin"]
[Result "0-1"]
[Annotator "TA"]
[ECO "B90"]
[WhiteElo "2600"]
[BlackElo "2437"]
[PlyCount "78"]
[EventDate "2025.03.14"]
[EventType "swiss"]
[EventCountry "ROU"]
[SourceTitle "playchess.com"]
[Source "ChessBase"]
[SourceQuality "1"]
[TimeControl "40/5400+30:1800+30"]

{[%evp 13,78,25,31,-7,14,0,36,25,41,41,47,-2,-4,-6,-20,-35,-41,-86,-58,-112,-93,-237,-184,-218,-233,-216,-208,-208,-198,-237,-191,-232,-187,-218,-206,-252,-158,-276,-270,-411,-397,-383,-256,-641,-249,-235,-250,-257,0,0,0,0,0,-108,-105,-91,-29,-560,-661,-652,-648,-661,-668,-648,-619,-29984,-29984]} 1. e4 {[%emt 0:00:07]} c5 {[%emt 0:00:12]} 2. Nf3 {[%emt 0:00:21]} d6 {[%emt 0:00:05]} 3. d4 {[%emt 0:00:31]} cxd4 {[%emt 0:00:08]} 4. Nxd4 {[%emt 0:00:09]} Nf6 {[%emt 0:00:07]} 5. Nc3 {[%emt 0:00:18]} a6 {[%emt 0:00:05]} 6. Be3 {[%emt 0:01:15]} e5 {[%emt 0:00:35]} 7. Nb3 {[%emt 0:00:19]} Be7 {[%emt 0:00:27]} 8. h3 {[%emt 0:01:45] B90: Sicilian Najdorf: Unusual White 6th moves, 6 Be3 Ng4 and 6 Be3 e5.} Be6 {[%emt 0:01:19]} 9. Qd2 {[%emt 0:02:44]} h5 {[%emt 0:12:40]} 10. O-O-O {[%emt 0:09:08] White is slightly better.} Nbd7 {[%emt 0:02:41]} 11. f4 {[%emt 0:02:58]} b5 {[%emt 0:06:05]} 12. f5 {[%emt 0:09:44]} (12. Bd3 $14) 12... Bc4 $1 $11 {[%emt 0:00:11]} 13. Kb1 {[%emt 0:03:21]} Qc7 {[%emt 0:03:16]} 14. Bd3 $146 {[%emt 0:15:14]} (14. Bxc4 bxc4 15. Nc1 Qb7 16. Bg5 Rb8 17. b3 a5 18. Rhe1 Qb4 19. Bxf6 Nxf6 20. Nd5 Nxd5 21. Qxd5 {1-0 Kubicka,A (2221)-Hrescak,I (2034) EU-ch U18 Girls 27th 2017 (2)}) 14... b4 {[%emt 0:06:53]} 15. Ne2 {[%emt 0:02:32]} d5 {[%emt 0:08:59]} 16. exd5 {[%emt 0:06:35] Black has space advantage and is better} (16. g4 $15) 16... Bxd5 $17 {[%emt 0:00:15][%cal Oa6a5]} 17. Ng3 {[%emt 0:01:15]} (17. Rhe1 $17) 17... h4 {[%emt 0:08:25]} 18. Nf1 {[%emt 0:03:13] [#]} a5 $1 {[%emt 0:05:15]} 19. Bg5 {[%emt 0:06:35]} a4 {[%emt 0:04:48]} 20. Nc1 {[%emt 0:00:13]} a3 {[%emt 0:11:11]} 21. b3 {[%emt 0:07:04] [#]} Bxg2 $1 {[%emt 0:06:20][%mdl 512]} 22. Rg1 {[%emt 0:03:43] White is weak on the dark squares} (22. Qxg2 e4 23. Bxf6 (23. Bxe4 Qe5 $11) 23... Nxf6 $18) (22. Bxf6 gxf6) 22... Bf3 {[%emt 0:01:33]} 23. Re1 {[%emt 0:01:25]} e4 {[%emt 0:02:39]} 24. Bc4 {[%emt 0:04:08]} Nb6 {[%emt 0:01:57]} 25. Bf4 {[%emt 0:01:47]} (25. Nh2 $17) 25... Qc5 {[%emt 0:02:13]} 26. Rxg7 {[%emt 0:02:44]} (26. Qh2 {might work better.}) 26... Nxc4 $19 {[%emt 0:01:05]} 27. bxc4 {[%emt 0:00:05]} Rd8 $40 {[%emt 0:01:23][%mdl 128] Black is out for blood.} (27... Qxf5 28. Rg5 Qd7 (28... Qxh3 29. Bd6 $17) 29. Qh2 $17) (27... Qxc4 28. Be5 $19) 28. Nb3 {[%emt 0:05:03]} (28. Qh2) 28... Qxf5 $2 {[%emt 0:03:22]} (28... Rxd2 29. Nxc5 Re2 30. Rxe2 Bxe2) 29. Rg5 {[%emt 0:00:55]} Qxh3 {[%emt 0:01:40]} (29... Rxd2 30. Rxf5 Re2 31. Rxe2 Bxe2 32. Ne3) 30. Nd4 {[%emt 0:00:05] [#]} Ng4 {[%emt 0:02:01] Inhibits Re5.} (30... Rh5 $1 $19 31. Ne3 Rxg5 32. Bxg5 Rxd4 33. Qxd4 Qg3 34. Bxh4 Qxh4) 31. Rd5 $11 {[%emt 0:00:51]} Rxd5 {[%emt 0:06:19]} 32. cxd5 {[%emt 0:00:02]} O-O {[%emt 0:00:33]} 33. Ne3 {[%emt 0:00:55]} (33. Bd6 $1 $11 Bxd6 34. Qg5+ Kh7 35. Nf5) 33... Nxe3 $17 {[%emt 0:00:53]} 34. Qxe3 {[%emt 0:00:06][%cal Of4d6] Threatens to win with Bd6!.} Bf6 {[%emt 0:00:18]} (34... Kh7 $17 {and ...Rg8 should not be overlooked} 35. Nxf3 Qxf3 36. Qxe4+ (36. Qxf3 $2 exf3 37. d6 Bf6 $19) 36... Qxe4 37. Rxe4 Bf6 (37... Bc5 38. Rc4 $17)) 35. Be5 $2 {[%emt 0:01:38][%mdl 8192]} Bxe5 $19 {[%emt 0:01:02]} 36. Qg5+ {[%emt 0:00:39]} Bg7 {[%emt 0:00:53]} 37. Rg1 {[%emt 0:02:47][%csl Gg1][%cal Rg5g7] [#] Prevents Qg2.} Bg4 $1 {[%emt 0:00:00]} 38. Nf5 {[%emt 0:00:41][%csl Gf5][%cal Rg5g7] [#]} Qc3 {[%emt 0:00:01][%csl Gg7][%cal Rc3a1]} 39. Kc1 {[%emt 0:00:09]} (39. Qxg7+ Qxg7) 39... Bxf5 {[%emt 0:00:39] Weighted Error Value: White=0.74/Black=0.62  Loses game:     	White=1     	---        Missed win:     	---       	Black=1      Mistake:       	White=7     	Black=2      Inaccurate:     	White=1     	Black=4      OK:         	White=4     	Black=7      Best:        	White=2     	Black=4      Strong:       	---       	Black=2} 0-1

[Event "EICC 2025"]
[Site "Eforie-Nord"]
[Date "2025.03.17"]
[Round "3.3"]
[White "Petkov, Momchil"]
[Black "Dardha, Daniel"]
[Result "1/2-1/2"]
[Annotator "TA"]
[ECO "C50"]
[WhiteElo "2547"]
[BlackElo "2665"]
[PlyCount "47"]
[EventDate "2025.03.14"]
[EventType "swiss"]
[EventCountry "ROU"]
[SourceTitle "playchess.com"]
[Source "ChessBase"]
[SourceQuality "1"]
[TimeControl "40/5400+30:1800+30"]

{[%evp 11,47,11,15,18,13,12,14,-3,13,14,14,14,17,11,15,8,13,20,10,0,39,37,61,42,41,42,41,35,54,33,45,39,43,0,54,0,58,0]} 1. e4 {[%emt 0:00:07]} e5 {[%emt 0:00:11]} 2. Nf3 {[%emt 0:00:12]} Nc6 {[%emt 0:00:07]} 3. Bc4 {[%emt 0:00:16]} Bc5 {[%emt 0:01:11]} 4. Nc3 {[%emt 0:00:17]} Nf6 {[%emt 0:00:46]} 5. d3 {[%emt 0:00:14]} h6 {[%emt 0:03:02]} 6. a3 {[%emt 0:00:42]} a6 {[%emt 0:01:46]} 7. Be3 {[%emt 0:00:31] C50: Hungarian Defence and Giuoco Pianissimo.} d6 {[%emt 0:01:49]} 8. Bxc5 {[%emt 0:00:51]} dxc5 {[%emt 0:04:06]} 9. Nd5 {[%emt 0:02:29] The position is equal.} Qd6 {[%emt 0:03:33]} 10. Ne3 {[%emt 0:02:37]} b5 {[%emt 0:03:17]} 11. Ba2 {[%emt 0:01:34]} O-O {[%emt 0:00:49][%cal Be8g8,Bg8h7,Bh7h8][%mdl 32]} 12. O-O {[%emt 0:01:10]} Rd8 $146 {[%emt 0:02:34]} (12... Nd4 13. Nd2 Be6 14. c3 Nc6 15. Bxe6 Qxe6 16. Qc2 Rfd8 17. Rfd1 Ne7 18. a4 Ng6 19. axb5 axb5 20. Rxa8 Rxa8 {½-½ Sindarov,J (2674)-Sargsyan,S (2649) CrunchLab Masters Div 3 W rapid 2024 (1.2)}) 13. Nh4 {[%emt 0:05:58][%cal Bf3h4,Bh4f5,Bf5g3][%mdl 32]} Be6 {[%emt 0:07:08]} 14. Nhf5 {[%emt 0:07:10]} Qd7 {[%emt 0:01:25]} 15. Bxe6 {[%emt 0:02:25]} fxe6 {[%emt 0:14:03]} 16. Ng3 {[%emt 0:03:26]} Kh7 {[%emt 0:04:36]} 17. Kh1 {[%emt 0:05:08]} Rab8 {[%emt 0:04:50]} 18. Qe1 {[%emt 0:04:55]} Qe7 {[%emt 0:06:10]} 19. a4 {[%emt 0:03:12]} Qd6 {[%emt 0:03:08]} 20. b3 {[%emt 0:07:25]} Kh8 {[%emt 0:02:57]} 21. Kg1 {[%emt 0:02:02]} Kh7 {[%emt 0:00:32]} 22. Kh1 {[%emt 0:00:19]} Kh8 {[%emt 0:00:20]} 23. Kg1 {[%emt 0:00:11]} Kh7 $1 {[%emt 0:00:12]} 24. Kh1 {[%emt 0:00:08] Weighted Error Value: White=0.09 (flawless) /Black=0.07 (flawless)   Mistake:       	White=1     	---        Inaccurate:     	---       	Black=1      OK:         	White=8     	Black=6      Strong:       	---       	Black=1} (24. Qe2 $14) 1/2-1/2